bitfinex/quotes_ETHUSD_20250505
["timestamp","ask_amount","ask_price","bid_price","bid_amount"]
[1746434714439,10.90010292,1834.9,1834.7,0.14866521]
[1746434714627,5.45020064,1834.8,1834.6,1.3775016]
[1746434714826,5.45020064,1834.8,1834.7,0.14866521]
[1746434715023,5.45020064,1834.8,1834.6,0.8262]
[1746434715348,13.9002889,1834.9,1834.7,0.14866521]
[1746434715553,13.9002889,1834.9,1834.6,0.8262]
[1746434715554,8.86190017,1834.9,1834.6,0.8262]
[1746434715743,8.86190017,1834.9,1834.7,0.14866521]
[1746434716061,8.86190017,1834.9,1834.6,0.8262]
[1746434716222,8.86190017,1834.9,1834.8,0.14858985]
[1746434716424,5.45020637,1834.8,1834.6,0.8262]
[1746434716663,5.45020637,1834.8,1834.7,0.14866521]
[1746434717073,5.45088299,1834.6,1834.4,0.8213]
[1746434717376,5.45107658,1834.5,1834.4,0.8213]
[1746434717747,10.90243354,1834.5,1834.3,11.5073]
[1746434718075,5.45093499,1834.6,1834.3,11.5073]
[1746434719375,5.45093499,1834.6,1834.3,13.25822657]
[1746434719985,5.45093499,1834.6,1834.4,0.14889133]
[1746434722491,5.45107658,1834.5,1834.4,0.14889133]
[1746434722851,8.45107658,1834.5,1834.4,0.14889133]
[1746434723795,3.0,1834.5,1834.4,0.14889133]
[1746434724092,5.45055272,1834.7,1834.4,2.00978046]
[1746434724504,5.45055272,1834.7,1834.5,0.55]
[1746434724801,5.45055272,1834.7,1834.6,0.1457889]
[1746434724992,5.45039653,1834.8,1834.6,0.1457889]
[1746434725171,3.0,1834.7,1834.6,0.1457889]
[1746434725371,8.45048236,1834.7,1834.6,0.1457889]
[1746434726707,0.41178254,1834.9,1834.7,0.815]
[1746434726910,5.44969431,1835.0,1834.7,5.40350374]
[1746434727212,5.44969431,1835.0,1834.8,0.14334136]
[1746434727599,0.4151299,1835.0,1834.8,0.14334136]
[1746434727775,8.44947867,1835.1,1834.8,0.14334136]
[1746434727975,13.89906628,1835.1,1834.8,0.14334136]
[1746434728206,5.44966504,1835.0,1834.8,0.14334136]
[1746434728411,5.44988827,1834.9,1834.8,0.14334136]
[1746434733008,5.85194987,1835.0,1834.8,0.90744136]
[1746434733397,11.30180459,1835.0,1834.8,0.90744136]
[1746434733598,5.44988827,1834.9,1834.8,0.90744136]
[1746434734331,5.85188585,1835.0,1834.9,0.55]
[1746434734533,8.85188585,1835.0,1834.9,0.55]
[1746434734738,8.85188585,1835.0,1834.9,0.69326601]
[1746434735036,8.85188585,1835.0,1834.9,0.14326601]
[1746434735629,5.45008652,1834.9,1834.7,4.534]
[1746434735831,5.45008652,1834.9,1834.8,0.14334136]
[1746434736696,8.85189143,1835.0,1834.8,0.14334136]
[1746434736890,8.85189143,1835.0,1834.8,0.93644136]
[1746434737127,5.44988827,1834.9,1834.8,0.93644136]
[1746434738623,5.44988827,1834.9,1834.8,0.14334136]
[1746434738829,5.75600622,1834.9,1834.8,0.14334136]
[1746434744837,5.75600622,1834.9,1834.8,0.96984136]
[1746434746235,5.75600622,1834.9,1834.8,5.50284136]
[1746434747709,0.30611795,1834.9,1834.8,5.50284136]
[1746434747915,0.30611795,1834.9,1834.8,12.0533108]
[1746434748506,3.0,1835.0,1834.9,0.55]
[1746434749016,3.0,1835.0,1834.9,0.69101517]
[1746434749616,8.44959128,1835.0,1834.9,0.69101517]
[1746434749913,8.75605914,1835.0,1834.9,0.69101517]
[1746434750559,8.75605914,1835.0,1834.9,0.14101517]
[1746434754020,10.99245248,1835.0,1834.9,0.14101517]
[1746434754417,8.4501853,1834.8,1834.7,4.533]
[1746434754572,3.8227,1834.7,1834.3,0.8236]
[1746434754752,5.45153542,1834.4,1834.2,28.712]
[1746434754951,5.45153542,1834.4,1834.3,0.55]
[1746434755557,5.45153542,1834.4,1834.2,28.712]
[1746434756260,8.45153542,1834.4,1834.3,0.55]
[1746434756468,13.90316161,1834.4,1834.2,28.712]
[1746434756658,5.45167093,1834.3,1834.2,28.712]
[1746434756854,3.41714933,1834.4,1834.2,29.262]
[1746434757059,8.86870376,1834.4,1834.2,29.262]
[1746434760897,5.45167093,1834.3,1834.2,29.262]
[1746434762104,8.86871351,1834.4,1834.2,29.262]
[1746434764701,8.86871351,1834.4,1834.2,11.233]
[1746434765201,8.86871351,1834.4,1834.3,0.12212878]
[1746434767710,0.7879,1834.9,1834.3,2.05684166]
[1746434767872,3.0,1834.5,1834.3,0.97583843]
[1746434768271,8.4506755,1834.7,1834.3,0.97583843]
[1746434768708,5.45084934,1834.6,1834.3,0.97583843]
[1746434768869,5.45137374,1834.4,1834.3,0.12212878]
[1746434769069,5.45118003,1834.5,1834.3,0.12212878]
[1746434770909,5.4509751,1834.6,1834.3,0.89322878]
[1746434771310,0.40863558,1834.7,1834.3,8.10205136]
[1746434771467,11.67405672,1834.8,1834.4,5.45133977]
[1746434771673,5.45051879,1834.7,1834.5,0.12313176]
[1746434771997,3.0,1834.6,1834.3,6.2770987]
[1746434772199,3.0,1834.6,1834.4,0.12320714]
[1746434774124,8.45004058,1834.9,1834.5,6.76952013]
[1746434774337,8.45004058,1834.9,1834.6,4.534]
[1746434774622,8.45004058,1834.9,1834.6,10.16219503]
[1746434774623,3.0,1834.9,1834.6,10.16219503]
[1746434774932,6.41717153,1835.4,1834.7,5.45046154]
[1746434774933,13.8989837,1835.1,1834.7,5.45046154]
[1746434775229,0.3060513,1835.0,1834.8,0.12150905]
[1746434775630,0.3060513,1835.0,1834.8,0.95060905]
[1746434775806,8.44944305,1835.1,1834.8,0.95060905]
[1746434776322,3.0,1835.1,1834.9,0.55]
[1746434776712,3.0,1835.1,1835.0,0.12135836]
[1746434777039,8.44929431,1835.1,1835.0,0.12135836]
[1746434777533,8.75530246,1835.1,1835.0,0.12135836]
[1746434777925,9.16825138,1835.1,1835.0,0.12135836]
[1746434778418,9.16825138,1835.1,1834.7,0.55]
[1746434778619,14.61780953,1835.1,1834.7,2.30096991]
[1746434778839,9.16825138,1835.1,1834.8,0.12150905]
[1746434778987,0.30600815,1835.0,1834.8,0.12150905]
[1746434782846,5.75570885,1835.0,1834.8,0.12150905]
[1746434783405,5.4497007,1835.0,1834.8,0.12150905]
[1746434783625,5.44988827,1834.9,1834.8,0.12150905]
[1746434783932,0.41294892,1835.1,1834.9,1.3152]
[1746434784135,5.44915376,1835.2,1834.9,1.3152]
[1746434784320,9.2698249,1835.1,1835.0,4.65962617]
[1746434784648,10.90242341,1835.1,1835.0,4.65962617]
[1746434784945,11.60992773,1835.1,1835.0,0.11862617]
[1746434785364,11.60992773,1835.1,1834.7,4.541]
[1746434785365,6.2705853,1834.8,1834.7,4.541]
[1746434785844,6.57669688,1834.8,1834.7,4.541]
[1746434788634,5.75629688,1834.8,1834.7,4.541]
[1746434789817,6.9567118,1834.8,1834.7,4.541]
[1746434793153,0.30611158,1834.8,1834.7,4.541]
[1746434793329,0.30611158,1834.8,1834.7,10.54148236]
[1746434793659,0.40139274,1835.1,1834.9,5.44977639]
[1746434793866,0.40379602,1835.2,1834.9,5.44977639]
[1746434794016,3.40379602,1835.2,1834.9,5.44977639]
[1746434794385,5.44856304,1835.4,1834.9,10.89933534]
[1746434794386,5.44858805,1835.4,1834.9,10.89933534]
[1746434794851,8.44858805,1835.4,1835.0,0.12026534]
[1746434795052,0.30628227,1835.3,1835.0,0.12026534]
[1746434795761,0.30628227,1835.3,1835.1,0.7653]
[1746434796052,0.30628227,1835.2,1835.1,0.7653]
[1746434797754,3.30628227,1835.2,1835.0,1.3469]
[1746434798551,3.0,1835.2,1835.0,1.3469]
[1746434800772,0.30625362,1835.1,1835.0,1.3469]
[1746434801474,0.30625362,1835.1,1834.9,6.15]
[1746434802170,9.20879057,1835.2,1834.9,6.15]
[1746434803348,5.44959128,1835.0,1834.9,6.15]
[1746434803681,6.20629128,1835.0,1834.9,6.15]
[1746434803879,9.20629128,1835.0,1834.9,6.15]
[1746434804068,9.51267039,1835.0,1834.9,6.15]
[1746434804399,5.44988982,1834.9,1834.7,4.841]
[1746434806376,0.30639731,1834.8,1834.7,4.841]
[1746434807577,5.75658261,1834.8,1834.7,4.841]
[1746434807780,9.87722985,1834.8,1834.7,4.841]
[1746434807980,9.87722985,1834.8,1834.7,0.3]
[1746434807981,12.28127854,1834.8,1834.7,0.3]
[1746434809066,12.68172698,1834.8,1834.7,0.3]
[1746434817909,5.45167093,1834.3,1834.2,4.55]
[1746434818126,5.45196816,1834.2,1834.1,2.0]
[1746434818333,10.05731685,1834.2,1834.1,2.0]
[1746434818634,10.36371416,1834.2,1834.1,2.0]
[1746434819097,10.87325366,1834.2,1834.1,2.0]
[1746434819297,12.56026283,1834.2,1834.1,2.0]
[1746434820934,12.97754656,1834.2,1834.1,2.0]
[1746434821622,13.74744656,1834.2,1834.1,2.0]
[1746434822630,13.74744656,1834.2,1834.1,2.15477001]
[1746434822829,13.23790706,1834.2,1834.1,2.10845463]
[1746434823008,13.74662315,1834.2,1834.1,2.10845463]
[1746434826433,9.68436529,1834.2,1834.1,2.10845463]
[1746434827048,8.86925189,1834.2,1834.1,2.10845463]
[1746434829536,9.37810465,1834.2,1834.1,2.10845463]
[1746434830352,9.6835177,1834.2,1834.1,2.10845463]
[1746434835446,9.68407986,1834.2,1834.1,2.10845463]
[1746434836252,12.21772981,1834.2,1834.1,2.10845463]
[1746434836841,12.21772981,1834.2,1834.1,2.0]
[1746434838648,12.21966094,1834.2,1834.1,2.0]
[1746434843756,11.43946094,1834.2,1834.1,2.0]
[1746434843970,11.43980658,1834.2,1834.1,2.0]
[1746434844127,9.68635663,1834.2,1834.1,2.0]
[1746434844330,9.68635663,1834.2,1834.1,2.8056]
[1746434846624,9.1752271,1834.2,1834.1,2.8056]
[1746434850273,9.68687496,1834.2,1834.1,2.8056]
[1746434852977,9.68687496,1834.2,1834.1,2.0]
[1746434853188,11.36126442,1834.2,1834.1,2.0]
[1746434859892,10.84961656,1834.2,1834.1,2.0]
[1746434860066,5.45286002,1833.9,1833.8,4.543]
[1746434860261,5.45286002,1833.9,1833.5,6.9317]
[1746434860262,5.45375218,1833.6,1833.5,5.3247]
[1746434860454,5.75972739,1833.6,1833.5,5.3247]
[1746434861578,0.30597521,1833.6,1833.5,5.3247]
[1746434861884,0.81763488,1833.6,1833.5,5.3247]
[1746434862090,6.27138706,1833.6,1833.5,5.3247]
[1746434864497,9.27138706,1833.6,1833.5,4.543]
[1746434872600,9.27138706,1833.6,1833.5,5.3017]
[1746434876206,9.27138706,1833.6,1833.5,5.45526167]
[1746434877684,9.27138706,1833.6,1833.5,4.69656167]
[1746434880578,9.27138706,1833.6,1833.5,5.48646167]
[1746434880579,3.81763488,1833.6,1833.5,5.48646167]
[1746434881116,0.81763488,1833.6,1833.5,6.58510784]
[1746434881289,0.51165967,1833.6,1833.5,6.58510784]
[1746434881622,3.0,1833.8,1833.7,0.8248]
[1746434882002,3.5109488,1833.8,1833.7,0.95037804]
[1746434882194,3.817518,1833.8,1833.7,0.95037804]
[1746434882695,9.27067537,1833.8,1833.7,0.95037804]
[1746434883018,3.817518,1833.8,1833.7,0.95037804]
[1746434883411,0.817518,1833.8,1833.7,0.95037804]
[1746434884288,0.5109488,1833.8,1833.7,0.95037804]
[1746434886849,0.81762393,1833.8,1833.7,0.95037804]
[1746434890951,0.81762393,1833.8,1833.7,0.12557804]
[1746434891114,0.81762393,1833.8,1833.5,18.06260048]
[1746434891321,0.5109488,1833.7,1833.6,0.55]
[1746434891521,0.5109488,1833.7,1833.6,0.70444833]
[1746434893150,0.5109488,1833.7,1833.6,0.15444833]
[1746434893363,0.81766263,1833.7,1833.6,0.15444833]
[1746434893720,6.27111739,1833.7,1833.6,0.15444833]
[1746434894229,6.67324138,1833.7,1833.6,0.15444833]
[1746434895062,11.27859007,1833.7,1833.6,0.15444833]
[1746434895245,13.29983012,1833.7,1833.6,0.15444833]
[1746434895626,6.22004711,1833.4,1833.3,3.66719467]
[1746434895960,11.64305843,1833.4,1833.3,3.66719467]
[1746434897624,8.45464462,1833.3,1833.2,4.537]
[1746434897824,8.45464462,1833.3,1833.0,18.039]
[1746434898035,8.96559342,1833.3,1833.0,18.039]
[1746434898256,0.5109488,1833.2,1833.0,18.039]
[1746434898460,0.5109488,1833.2,1833.0,18.8068]
[1746434898634,3.0,1833.3,1833.0,18.8068]
[1746434899577,0.51092851,1833.2,1833.0,18.8068]
[1746434900161,3.0,1833.3,1833.0,18.8068]
[1746434900971,8.4547175,1833.3,1833.0,18.8068]
[1746434901270,0.51086805,1833.2,1833.0,18.8068]
[1746434901478,8.4547175,1833.3,1833.0,18.8068]
[1746434902146,3.0,1833.3,1833.1,0.55]
[1746434902349,5.45417903,1833.5,1833.2,0.829]
[1746434902675,0.51074743,1833.4,1833.3,6.88818564]
[1746434902875,0.51074743,1833.4,1833.3,17.57618564]
[1746434903064,3.0,1833.8,1833.5,1.379]
[1746434903248,3.0,1833.8,1833.5,1.43353222]
[1746434904444,3.0,1833.8,1833.5,2.66770456]
[1746434904863,3.0,1833.8,1833.5,2.61317234]
[1746434905067,0.51059247,1833.7,1833.5,1.379]
[1746434905268,5.9640714,1833.7,1833.5,1.379]
[1746434905437,0.51059247,1833.7,1833.5,1.379]
[1746434905861,0.51059247,1833.6,1833.5,1.379]
[1746434906677,0.51059247,1833.7,1833.5,1.379]
[1746434907188,8.86448849,1833.8,1833.5,1.379]
[1746434907642,0.30636378,1833.7,1833.5,1.379]
[1746434907843,5.75991744,1833.7,1833.5,1.379]
[1746434908278,0.51062145,1833.6,1833.5,1.379]
[1746434909278,5.45355366,1833.7,1833.5,1.379]
[1746434909596,5.45375218,1833.6,1833.3,11.4793]
[1746434909878,5.45428771,1833.5,1833.3,10.688]
[1746434910080,5.45434711,1833.4,1833.3,10.688]
[1746434910254,5.45434711,1833.4,1833.3,4.538]
[1746434910457,5.96506318,1833.4,1833.3,4.538]
[1746434910656,6.27149406,1833.4,1833.3,4.538]
[1746434912082,9.27149406,1833.4,1833.3,4.538]
[1746434919896,3.81714695,1833.4,1833.3,4.538]
[1746434920097,0.81714695,1833.4,1833.3,5.7426]
[1746434920281,5.4542449,1833.5,1833.3,5.7426]
[1746434920487,5.4542449,1833.5,1833.3,5.2888]
[1746434920688,5.86449696,1833.8,1833.4,0.55]
[1746434920887,5.86449696,1833.8,1833.5,0.8222]
[1746434921089,0.30647737,1833.7,1833.5,0.8222]
[1746434921604,5.86449696,1833.8,1833.5,0.8222]
[1746434921763,0.51080399,1833.7,1833.5,0.8222]
[1746434922074,5.86449696,1833.8,1833.5,1.510306]
[1746434923175,0.51082846,1833.7,1833.5,1.510306]
[1746434923770,5.45351183,1833.7,1833.5,0.8222]
[1746434924600,10.9072455,1833.7,1833.5,0.8222]
[1746434924802,5.45404842,1833.6,1833.4,0.55]
[1746434924978,5.45406879,1833.5,1833.3,11.5013]
[1746434925183,5.96493008,1833.5,1833.3,11.5013]
[1746434925500,5.45434711,1833.4,1833.3,11.238]
[1746434925886,5.96525695,1833.4,1833.3,11.238]
[1746434926067,7.57060564,1833.4,1833.3,10.688]
[1746434926268,12.31582476,1833.4,1833.3,10.688]
[1746434926601,10.71047607,1833.4,1833.3,6.15]
[1746434927808,9.27180933,1833.4,1833.3,6.15]
[1746434928806,9.68035591,1833.4,1833.3,6.15]
[1746434929408,4.2260088,1833.4,1833.3,6.15]
[1746434930281,4.2260088,1833.4,1833.2,0.8096]
[1746434930992,0.51090984,1833.3,1833.2,1.3596]
[1746434933116,0.40854658,1833.4,1833.2,1.3596]
[1746434933284,5.45423809,1833.5,1833.2,1.3596]
[1746434933611,0.51110121,1833.4,1833.2,1.3596]
[1746434934019,5.45439681,1833.4,1833.2,1.3596]
[1746434934515,0.51111186,1833.3,1833.2,0.55]
[1746434934937,0.51111186,1833.3,1833.1,6.15]
[1746434935136,1.18334357,1833.3,1833.1,6.15]
[1746434935321,5.96605403,1833.2,1833.1,6.15]
[1746434936001,6.27281411,1833.2,1833.1,6.15]
[1746434936197,6.27281411,1833.2,1833.0,4.537]
[1746434936604,0.51111186,1833.1,1833.0,5.087]
[1746434938642,0.51111186,1833.1,1833.0,5.14154921]
[1746434938842,0.51111186,1833.2,1833.0,7.09710413]
[1746434939343,6.61539957,1833.4,1833.0,7.09710413]
[1746434939641,10.9102707,1833.2,1833.0,5.087]
[1746434939832,5.45507682,1833.2,1833.0,5.087]
[1746434940007,5.45496035,1833.2,1833.0,5.087]
[1746434940207,5.45496035,1833.2,1833.0,5.14154903]
[1746434940621,5.45496035,1833.2,1833.0,5.087]
[1746434940911,0.51132992,1833.1,1833.0,5.087]
[1746434941508,5.45496035,1833.2,1833.0,5.087]
[1746434942009,0.51131236,1833.1,1833.0,5.087]
[1746434943945,5.45496035,1833.2,1833.0,5.087]
[1746434944642,0.51126213,1833.1,1833.0,5.087]
[1746434945468,5.45496035,1833.2,1833.0,5.087]
[1746434946456,5.45482408,1833.3,1833.0,5.087]
[1746434946750,0.51121986,1833.2,1833.0,5.087]
[1746434947157,5.45482408,1833.3,1833.0,5.087]
[1746434947955,5.45494826,1833.2,1833.0,5.087]
[1746434951365,5.45494826,1833.2,1833.0,4.987]
[1746434951669,0.51136207,1833.1,1833.0,4.987]
[1746434952170,5.45583501,1832.9,1832.8,3.66719467]
[1746434952532,5.96719708,1832.9,1832.8,3.66719467]
[1746434952960,6.27405743,1832.9,1832.8,3.66719467]
[1746434953176,6.78554747,1832.9,1832.8,3.66719467]
[1746434955089,1.32971246,1832.9,1832.8,3.66719467]
[1746434955557,1.73696007,1832.9,1832.8,3.66719467]
[1746434956393,1.73696007,1832.9,1832.7,4.537]
[1746434956682,7.19288096,1832.9,1832.7,4.537]
[1746434956891,0.51149004,1832.8,1832.7,5.14155838]
[1746434957591,1.02297171,1832.8,1832.7,5.14155838]
[1746434957891,1.02297171,1832.8,1832.7,5.087]
[1746434960494,0.51149004,1832.8,1832.7,5.087]
[1746434960869,0.51149004,1832.8,1832.7,5.14155857]
[1746434961886,0.51149004,1832.8,1832.7,5.087]
[1746434963004,12.26744564,1832.8,1832.7,4.537]
[1746434963803,12.57426802,1832.8,1832.7,4.537]
[1746434970609,5.45666882,1832.7,1832.5,0.55]
[1746434970907,5.45666882,1832.7,1832.4,4.538]
[1746434970908,5.45686554,1832.6,1832.4,4.538]
[1746434971098,5.96826421,1832.6,1832.4,4.538]
[1746434971295,5.45686554,1832.6,1832.4,4.538]
[1746434971480,0.51149004,1832.5,1832.4,4.538]
[1746434972713,5.4566136,1832.7,1832.4,4.538]
[1746434973321,10.91328365,1832.7,1832.4,4.538]
[1746434973476,0.51090014,1832.6,1832.4,4.538]
[1746434974114,0.51090014,1832.6,1832.5,1.3233]
[1746434974325,0.51090014,1832.6,1832.5,6.78032592]
[1746434974779,0.40724761,1832.9,1832.5,6.83488654]
[1746434974981,0.51091405,1832.8,1832.5,6.83488654]
[1746434975183,0.51091405,1832.8,1832.5,12.29171659]
[1746434975496,5.45585586,1832.9,1832.5,13.10563412]
[1746434976122,0.51098211,1832.8,1832.5,7.6486082]
[1746434976306,1.02196422,1832.8,1832.5,7.70316838]
[1746434976813,0.51098211,1832.8,1832.5,13.15996327]
[1746434977116,0.51098211,1832.8,1832.5,13.10538104]
[1746434977318,8.45570964,1833.0,1832.5,7.64856633]
[1746434977504,0.51119819,1832.9,1832.5,7.70312627]
[1746434977706,0.92270449,1832.9,1832.5,7.70312627]
[1746434978016,6.37855613,1832.9,1832.5,2.24633809]
[1746434978215,5.45618167,1832.8,1832.5,2.19177815]
[1746434978420,5.96737986,1832.8,1832.5,2.19177815]
[1746434978914,0.51119819,1832.7,1832.5,2.19177815]
[1746434979116,1.02254021,1832.7,1832.5,0.7733]
[1746434979278,5.96791325,1832.7,1832.5,0.7733]
[1746434979913,0.51134202,1832.6,1832.4,5.3057]
[1746434980342,0.51134202,1832.6,1832.4,5.36026512]
[1746434980624,0.51134202,1832.6,1832.4,10.81755479]
[1746434980919,5.45631287,1832.8,1832.4,10.81755479]
[1746434981141,0.51161564,1832.7,1832.4,10.81755479]
[1746434981484,5.45631287,1832.8,1832.4,10.81755479]
[1746434981784,6.82496537,1832.8,1832.4,10.81755479]
[1746434982020,0.51179955,1832.7,1832.4,10.81755479]
[1746434982316,0.51179955,1832.7,1832.4,5.36026512]
[1746434982519,5.96825772,1832.7,1832.4,5.3057]
[1746434982833,6.27593154,1832.6,1832.4,4.538]
[1746434983184,1.0236737,1832.5,1832.4,4.538]
[1746434985118,1.33079942,1832.5,1832.4,4.538]
[1746434985981,1.0236737,1832.5,1832.4,4.538]
[1746434988734,1.33080971,1832.5,1832.4,4.538]
[1746434990700,1.0236737,1832.5,1832.4,4.538]
[1746434992220,1.33088918,1832.5,1832.4,4.538]
[1746434993636,6.7879151,1832.5,1832.4,4.538]
[1746434993925,8.01238209,1832.5,1832.4,4.538]
[1746434994098,2.55535617,1832.5,1832.4,4.538]
[1746434997949,11.01238209,1832.5,1832.4,4.538]
[1746434998348,11.81448209,1832.5,1832.4,4.538]
[1746435001454,6.35745617,1832.5,1832.4,4.538]
[1746435002161,11.81448209,1832.5,1832.4,4.538]
[1746435007658,11.01238209,1832.5,1832.4,4.538]
[1746435008561,4.33088918,1832.5,1832.4,5.3498]
[1746435008721,1.33088918,1832.5,1832.4,5.8998]
[1746435008921,1.33088918,1832.5,1832.4,11.41169015]
[1746435009232,1.33088918,1832.5,1832.4,11.35712372]
[1746435009433,1.0236737,1832.5,1832.4,11.35712372]
[1746435009758,0.51179955,1832.5,1832.4,13.03857399]
[1746435011778,0.51179955,1832.5,1832.4,19.18857399]
[1746435012768,5.85870429,1833.4,1833.0,1.3544]
[1746435012944,5.85870429,1833.4,1833.0,5.9459482]
[1746435013144,7.46405298,1833.4,1833.0,5.9459482]
[1746435013344,5.96594862,1833.3,1833.0,5.087]
[1746435013544,2.42644869,1833.2,1833.0,5.087]
[1746435013769,2.93772589,1833.2,1833.0,5.087]
[1746435014178,0.5112772,1833.1,1833.0,5.087]
[1746435015064,1.60534869,1833.2,1833.0,5.087]
[1746435015272,1.60534869,1833.2,1833.0,5.1415496]
[1746435015472,1.60534869,1833.2,1833.0,5.087]
[1746435015949,5.45482711,1833.3,1833.0,5.087]
[1746435016585,5.45500013,1833.2,1833.0,5.087]
[1746435016757,2.66137791,1833.2,1833.0,4.537]
[1746435017082,10.0381208,1833.1,1833.0,4.537]
[1746435018600,4.58288105,1833.1,1832.7,9.81546973]
[1746435018806,5.45608135,1832.9,1832.7,8.20146973]
[1746435018982,5.45613269,1832.8,1832.7,8.20146973]
[1746435019705,5.45613269,1832.8,1832.7,4.536]
[1746435020221,5.96664929,1832.8,1832.7,4.536]
[1746435022323,8.86129071,1832.9,1832.7,4.536]
[1746435023007,0.5104594,1832.8,1832.7,4.536]
[1746435023594,8.86129071,1832.9,1832.7,4.536]
[1746435024624,0.51048166,1832.8,1832.7,4.536]
[1746435028213,8.86129071,1832.9,1832.7,4.536]
[1746435029526,0.51066251,1832.8,1832.7,4.536]
[1746435031893,0.51066251,1832.8,1832.7,4.77963265]
[1746435034233,0.51066251,1832.8,1832.7,5.55473265]
[1746435034403,0.51066251,1832.8,1832.7,12.03912631]
[1746435034735,8.45529196,1833.1,1832.7,12.03912631]
[1746435034939,0.51093176,1833.0,1832.7,12.03912631]
[1746435035748,8.45529196,1833.1,1832.7,12.03912631]
[1746435036046,8.45529196,1833.1,1832.7,18.18912631]
[1746435036551,8.45529196,1833.1,1832.9,0.55]
[1746435036847,8.45529196,1833.1,1833.0,0.24786425]
[1746435037222,8.76194444,1833.1,1833.0,0.24786425]
[1746435037424,9.27316005,1833.1,1833.0,0.24786425]
[1746435038150,0.81786809,1833.1,1833.0,0.24786425]
[1746435040542,0.51121561,1833.1,1833.0,0.24786425]
[1746435041519,5.96645536,1833.1,1833.0,0.24786425]
[1746435042318,6.27328015,1833.1,1833.0,0.24786425]
[1746435042617,0.8180404,1833.1,1833.0,0.24786425]
[1746435044850,6.27328015,1833.1,1833.0,0.24786425]
[1746435046835,0.8180404,1833.1,1833.0,0.24786425]
[1746435047727,0.8180404,1833.1,1833.0,1.58956425]
[1746435047940,0.51121561,1833.1,1833.0,7.80462882]
[1746435048136,0.40415845,1833.4,1833.1,0.55]
[1746435048460,0.51126157,1833.3,1833.2,0.24557453]
[1746435049943,0.51126157,1833.3,1833.2,0.79557453]
[1746435050142,0.51126157,1833.3,1833.2,7.0300167]
[1746435050343,0.51126157,1833.3,1833.2,8.73194171]
[1746435050543,7.05926437,1833.6,1833.2,8.73194171]
[1746435051059,0.81767066,1833.5,1833.2,8.73194171]
[1746435051557,0.30662681,1833.5,1833.3,0.55]
[1746435051858,0.41818648,1833.5,1833.3,0.55]
[1746435052024,7.05926437,1833.6,1833.4,0.24437608]
[1746435052466,0.51079946,1833.5,1833.4,0.24437608]
[1746435053363,6.73404909,1833.5,1833.4,0.24437608]
[1746435053531,5.45444903,1833.4,1833.2,6.15]
[1746435053731,7.05979772,1833.4,1833.2,6.15]
[1746435053955,7.05979772,1833.4,1833.3,0.24446017]
[1746435054129,10.05979772,1833.4,1833.3,0.24446017]
[1746435054455,10.57059718,1833.4,1833.3,0.24446017]
[1746435054661,10.87703414,1833.4,1833.3,0.24446017]
[1746435056670,5.45467978,1833.3,1833.1,4.534]
[1746435057590,0.51089313,1833.2,1833.1,5.084]
[1746435057752,0.51089313,1833.2,1833.1,6.34012]
[1746435057952,5.45467978,1833.3,1833.1,6.34012]
[1746435059089,0.51094787,1833.2,1833.1,6.34012]
[1746435063690,0.51094787,1833.2,1833.1,11.79535975]
[1746435064068,3.0,1833.4,1833.1,11.79435975]
[1746435064399,3.0,1833.4,1833.2,0.55]
[1746435064696,0.51146323,1833.3,1833.2,1.3602]
[1746435065022,0.51146323,1833.3,1833.2,8.31756683]
[1746435065576,0.51146099,1833.3,1833.2,8.31756683]
[1746435065881,0.51146099,1833.3,1833.2,7.05611086]
[1746435066087,10.5714543,1833.3,1833.2,0.24296869]
[1746435066310,11.68728284,1833.3,1833.2,0.24296869]
[1746435066605,5.45536609,1833.1,1832.8,10.682]
[1746435066806,7.06071478,1833.1,1832.8,10.681]
[1746435067005,0.81838953,1833.0,1832.8,10.681]
[1746435067512,0.51146099,1832.9,1832.8,10.681]
[1746435067713,0.51146099,1832.9,1832.8,10.68]
[1746435068117,0.51146099,1832.9,1832.8,11.23]
[1746435068413,0.51146099,1832.9,1832.8,11.229]
[1746435069109,0.51146099,1832.9,1832.8,11.228]
[1746435079038,11.32544469,1832.9,1832.8,4.532]
[1746435079187,13.35122021,1832.9,1832.8,4.532]
[1746435079520,8.45638754,1832.8,1832.5,8.19798959]
[1746435079688,0.51146099,1832.7,1832.5,8.19798959]
[1746435080207,13.91279913,1832.8,1832.6,0.22282342]
[1746435080811,8.45638754,1832.8,1832.6,0.22282342]
[1746435081237,0.51106319,1832.7,1832.6,0.22282342]
[1746435082421,5.96749359,1832.7,1832.6,0.22282342]
[1746435082622,7.40988069,1832.7,1832.6,0.22282342]
[1746435083035,9.01522938,1832.7,1832.6,0.22282342]
[1746435083526,9.32180405,1832.7,1832.6,0.22282342]
[1746435092234,6.27406826,1832.7,1832.6,0.22282342]
[1746435092545,0.81763786,1832.7,1832.6,0.22282342]
[1746435092752,6.27406826,1832.7,1832.6,0.22282342]
[1746435093251,5.96749359,1832.7,1832.6,0.22282342]
[1746435094950,6.27411663,1832.7,1832.6,0.22282342]
[1746435095152,6.90916339,1832.7,1832.6,0.22282342]
[1746435109926,6.27411663,1832.7,1832.6,0.22282342]
[1746435110662,6.27560567,1832.7,1832.6,0.22282342]
[1746435117552,8.45676611,1832.6,1832.4,5.2844]
[1746435117753,0.30662304,1832.5,1832.4,5.8344]
[1746435118351,0.81917527,1832.5,1832.4,5.8344]
[1746435120474,0.81917527,1832.5,1832.4,5.082]
[1746435121551,0.81917527,1832.5,1832.4,4.532]
[1746435125088,0.81917527,1832.5,1832.4,4.74028681]
[1746435125581,12.31742907,1832.5,1832.4,4.74028681]
[1746435125896,11.99568771,1832.5,1832.4,4.74028681]
[1746435127793,12.45594548,1832.5,1832.4,4.74028681]
[1746435128002,12.45594548,1832.5,1832.4,0.20828681]
[1746435128174,10.84634635,1832.5,1832.4,0.20828681]
[1746435128372,5.45732372,1832.4,1832.3,3.66498959]
[1746435128676,9.0039129,1832.4,1832.3,3.66498959]
[1746435129072,9.51646513,1832.4,1832.3,3.66498959]
[1746435129568,9.51646513,1832.4,1832.2,6.146]
[1746435129569,8.45762156,1832.3,1832.2,6.146]
[1746435129769,13.91548998,1832.3,1832.0,9.51878959]
[1746435129974,5.45792442,1832.2,1832.0,8.74598959]
[1746435130194,0.51255223,1832.1,1832.0,8.74598959]
[1746435131080,0.51255223,1832.1,1832.0,9.56078959]
[1746435131423,8.45780296,1832.3,1832.0,9.56078959]